[Event "Late-Titled-Tuesday-Blitz-October-03-2023"]
[Site "Chess.com"]
[Date "2023.10.03"]
[Round "3"]
[White "Hikaru"]
[Black "Kosak12"]
[Result "1-0"]
[WhiteElo "3271"]
[BlackElo "2795"]
[TimeControl "180+1"]
[EndTime "14:27:47 PDT"]
[Termination "Hikaru won on time"]

1. Nf3 {[%clk 0:02:59.1]} 1... d5 {[%clk 0:02:59.3]} 2. c4 {[%clk 0:02:58.1]}
2... d4 {[%clk 0:02:58.3]} 3. e4 {[%clk 0:02:58.3]} 3... c5 {[%clk 0:02:57.6]}
4. d3 {[%clk 0:02:58.1]} 4... Nc6 {[%clk 0:02:57.9]} 5. g3 {[%clk 0:02:58.4]}
5... e5 {[%clk 0:02:55.6]} 6. Bg2 {[%clk 0:02:58.4]} 6... Bd6 {[%clk 0:02:56]}
7. O-O {[%clk 0:02:58.1]} 7... Nge7 {[%clk 0:02:56.7]} 8. a3 {[%clk 0:02:58.6]}
8... a5 {[%clk 0:02:55.7]} 9. Nbd2 {[%clk 0:02:57.1]} 9... a4 {[%clk 0:02:54.1]}
10. Nh4 {[%clk 0:02:57]} 10... f6 {[%clk 0:02:48.9]} 11. f4 {[%clk 0:02:55.5]}
11... Qc7 {[%clk 0:02:47.1]} 12. Qh5+ {[%clk 0:02:27.6]} 12... g6 {[%clk
0:02:44.9]} 13. Nxg6 {[%clk 0:02:28.1]} 13... Nxg6 {[%clk 0:02:43.1]} 14. f5
{[%clk 0:02:28.5]} 14... Qg7 {[%clk 0:02:34.6]} 15. Nf3 {[%clk 0:02:21.2]} 15...
Ke7 {[%clk 0:02:26.7]} 16. Bh6 {[%clk 0:01:41.2]} 16... Qg8 {[%clk 0:02:18.5]}
17. fxg6 {[%clk 0:01:38.5]} 17... hxg6 {[%clk 0:02:18.5]} 18. Qh4 {[%clk
0:01:39.2]} 18... g5 {[%clk 0:02:01.2]} 19. Qh5 {[%clk 0:01:25.6]} 19... Be6
{[%clk 0:01:58.4]} 20. Nxg5 {[%clk 0:01:21]} 20... fxg5 {[%clk 0:01:54]} 21.
Qxg5+ {[%clk 0:01:21.3]} 21... Qxg5 {[%clk 0:01:53.9]} 22. Bxg5+ {[%clk
0:01:22.2]} 22... Kd7 {[%clk 0:01:54.1]} 23. Rf2 {[%clk 0:01:18.4]} 23... Rag8
{[%clk 0:01:51.4]} 24. Bd2 {[%clk 0:01:18.4]} 24... Rf8 {[%clk 0:01:45.4]} 25.
Bf3 {[%clk 0:01:17.9]} 25... Bh3 {[%clk 0:01:40.4]} 26. Re1 {[%clk 0:01:16]}
26... Bc7 {[%clk 0:01:19.7]} 27. Bd1 {[%clk 0:01:16]} 27... Rxf2 {[%clk
0:01:18.8]} 28. Kxf2 {[%clk 0:01:16.9]} 28... Rf8+ {[%clk 0:01:19.1]} 29. Kg1
{[%clk 0:01:17]} 29... Ba5 {[%clk 0:01:18.5]} 30. Bxa5 {[%clk 0:01:15.1]} 30...
Nxa5 {[%clk 0:01:19.1]} 31. Bxa4+ {[%clk 0:01:15.4]} 31... Kd6 {[%clk
0:01:19.7]} 32. Bd1 {[%clk 0:01:13.2]} 32... Nc6 {[%clk 0:01:14.8]} 33. Be2
{[%clk 0:01:10.9]} 33... Na5 {[%clk 0:00:49.2]} 34. Bf1 {[%clk 0:01:06.6]} 34...
Bd7 {[%clk 0:00:47.9]} 35. b4 {[%clk 0:01:00.7]} 35... Nb3 {[%clk 0:00:47.1]}
36. Re2 {[%clk 0:01:01.2]} 36... Ra8 {[%clk 0:00:37.1]} 37. bxc5+ {[%clk
0:01:01.4]} 37... Nxc5 {[%clk 0:00:37.1]} 38. Ra2 {[%clk 0:01:02.2]} 38... Ba4
{[%clk 0:00:36.3]} 39. h4 {[%clk 0:01:01.4]} 39... Bb3 {[%clk 0:00:35.6]} 40.
Rf2 {[%clk 0:01:01.2]} 40... Rxa3 {[%clk 0:00:33.3]} 41. h5 {[%clk 0:01:01.5]}
41... Ra8 {[%clk 0:00:33.7]} 42. Be2 {[%clk 0:00:56.3]} 42... Bc2 {[%clk
0:00:32]} 43. Rf3 {[%clk 0:00:56.6]} 43... Ne6 {[%clk 0:00:27.4]} 44. Rf6 {[%clk
0:00:52.4]} 44... Ke7 {[%clk 0:00:27.1]} 45. Rf5 {[%clk 0:00:53]} 45... Kd6
{[%clk 0:00:26.9]} 46. Kf2 {[%clk 0:00:47.7]} 46... Rh8 {[%clk 0:00:25.7]} 47.
Ke1 {[%clk 0:00:44.3]} 47... Ba4 {[%clk 0:00:25.4]} 48. g4 {[%clk 0:00:33.9]}
48... Be8 {[%clk 0:00:22.1]} 49. Kd2 {[%clk 0:00:32.1]} 49... Nf4 {[%clk
0:00:22.3]} 50. c5+ {[%clk 0:00:32.5]} 50... Ke6 {[%clk 0:00:21.9]} 51. Bd1
{[%clk 0:00:32.5]} 51... Bb5 {[%clk 0:00:13.6]} 52. Bb3+ {[%clk 0:00:32.2]}
52... Kd7 {[%clk 0:00:14.3]} 53. Rxe5 {[%clk 0:00:30.5]} 53... Nxd3 {[%clk
0:00:14.6]} 54. Rd5+ {[%clk 0:00:28.6]} 54... Kc6 {[%clk 0:00:15]} 55. Rxd4
{[%clk 0:00:25.4]} 55... Nxc5 {[%clk 0:00:15.7]} 56. Bc2 {[%clk 0:00:22.4]}
56... Ne6 {[%clk 0:00:16.1]} 57. Rd5 {[%clk 0:00:22.6]} 57... Bc4 {[%clk
0:00:16.2]} 58. Rf5 {[%clk 0:00:21.7]} 58... Nd4 {[%clk 0:00:15.6]} 59. Rf6+
{[%clk 0:00:22]} 59... Kc5 {[%clk 0:00:15.9]} 60. Bd1 {[%clk 0:00:22.7]} 60...
Rd8 {[%clk 0:00:15.6]} 61. Ke3 {[%clk 0:00:23.1]} 61... Nc6 {[%clk 0:00:14.7]}
62. Bf3 {[%clk 0:00:18.7]} 62... Ne5 {[%clk 0:00:14.8]} 63. h6 {[%clk
0:00:18.7]} 63... Rd3+ {[%clk 0:00:11.8]} 64. Kf4 {[%clk 0:00:16.6]} 64... Nxf3
{[%clk 0:00:04.4]} 65. h7 {[%clk 0:00:17.2]} 65... Nd4 {[%clk 0:00:03.3]} 66.
h8=Q {[%clk 0:00:13.2]} 66... Rf3+ {[%clk 0:00:03.6]} 67. Kg5 {[%clk 0:00:13.3]}
1-0

[Event "Late-Titled-Tuesday-Blitz-October-03-2023"]
[Site "Chess.com"]
[Date "2023.10.03"]
[Round "3"]
[White "The_Princess_Moon"]
[Black "Bilan_Danila"]
[Result "0-1"]
[WhiteElo "2298"]
[BlackElo "2536"]
[TimeControl "180+1"]
[EndTime "14:27:51 PDT"]
[Termination "Bilan_Danila won by checkmate"]

1. e4 {[%clk 0:03:00.9]} 1... c6 {[%clk 0:02:52.7]} 2. d4 {[%clk 0:02:59.4]}
2... d5 {[%clk 0:02:52.2]} 3. exd5 {[%clk 0:03:00.3]} 3... cxd5 {[%clk
0:02:52.1]} 4. h3 {[%clk 0:03:00.2]} 4... Bf5 {[%clk 0:02:50.9]} 5. Nf3 {[%clk
0:02:58.8]} 5... Nc6 {[%clk 0:02:50.8]} 6. Bd3 {[%clk 0:02:59.1]} 6... Bg6
{[%clk 0:02:44.6]} 7. O-O {[%clk 0:02:57.7]} 7... e6 {[%clk 0:02:42.9]} 8. Re1
{[%clk 0:02:54.8]} 8... Nf6 {[%clk 0:02:40.6]} 9. c4 {[%clk 0:02:49.1]} 9... Bb4
{[%clk 0:02:33.8]} 10. Nc3 {[%clk 0:02:46.6]} 10... O-O {[%clk 0:02:26.7]} 11.
Bg5 {[%clk 0:02:27.8]} 11... dxc4 {[%clk 0:02:11.7]} 12. Bxc4 {[%clk 0:02:21.8]}
12... Ne7 {[%clk 0:02:00.7]} 13. Rc1 {[%clk 0:01:59.7]} 13... Rc8 {[%clk
0:01:56.9]} 14. Qb3 {[%clk 0:01:55.2]} 14... Qa5 {[%clk 0:01:40.8]} 15. Bxf6
{[%clk 0:01:30.3]} 15... gxf6 {[%clk 0:01:41.7]} 16. a3 {[%clk 0:01:05.7]} 16...
Bxc3 {[%clk 0:01:23.1]} 17. Rxc3 {[%clk 0:01:04.3]} 17... Rc7 {[%clk 0:01:10.2]}
18. Qa2 {[%clk 0:00:35.8]} 18... b5 {[%clk 0:00:52.1]} 19. Bxe6 {[%clk 0:00:19]}
19... Rxc3 {[%clk 0:00:45]} 20. bxc3 {[%clk 0:00:15.4]} 20... fxe6 {[%clk
0:00:43.5]} 21. Qxe6+ {[%clk 0:00:14.6]} 21... Rf7 {[%clk 0:00:42.8]} 22. Qd7
{[%clk 0:00:11.4]} 22... Qxa3 {[%clk 0:00:20.8]} 23. d5 {[%clk 0:00:10.2]} 23...
Nf5 {[%clk 0:00:19.9]} 24. Qxb5 {[%clk 0:00:05.8]} 24... Qxc3 {[%clk 0:00:15.3]}
25. d6 {[%clk 0:00:06]} 25... Nxd6 {[%clk 0:00:12]} 26. Qb8+ {[%clk 0:00:05.6]}
26... Nc8 {[%clk 0:00:11.5]} 27. Re8+ {[%clk 0:00:05]} 27... Rf8 {[%clk
0:00:12.1]} 28. Rxf8+ {[%clk 0:00:04.9]} 28... Kxf8 {[%clk 0:00:13]} 29. Qb5
{[%clk 0:00:04]} 29... Qc1+ {[%clk 0:00:12.5]} 30. Kh2 {[%clk 0:00:03.7]} 30...
Qc7+ {[%clk 0:00:13.4]} 31. g3 {[%clk 0:00:03.2]} 31... Ne7 {[%clk 0:00:13.1]}
32. Nh4 {[%clk 0:00:02.4]} 32... Kg7 {[%clk 0:00:13.1]} 33. Qa4 {[%clk 0:00:02]}
33... a5 {[%clk 0:00:12.4]} 34. Kg1 {[%clk 0:00:01.9]} 34... Qc1+ {[%clk
0:00:12.1]} 35. Kh2 {[%clk 0:00:01.3]} 35... Qc5 {[%clk 0:00:13]} 36. Qf4 {[%clk
0:00:01.1]} 36... Qe5 {[%clk 0:00:12]} 37. Qg4 {[%clk 0:00:02]} 37... Qc5 {[%clk
0:00:09.4]} 38. Qf3 {[%clk 0:00:02.7]} 38... a4 {[%clk 0:00:09.4]} 39. Ng2
{[%clk 0:00:02.9]} 39... a3 {[%clk 0:00:09.8]} 40. Nf4 {[%clk 0:00:03.7]} 40...
Qd6 {[%clk 0:00:08]} 41. Qg4 {[%clk 0:00:03.9]} 41... f5 {[%clk 0:00:07.9]} 42.
Qg5 {[%clk 0:00:03.9]} 42... Qf6 {[%clk 0:00:07.8]} 43. Nh5+ {[%clk 0:00:04.6]}
43... Kf7 {[%clk 0:00:06]} 44. Nxf6 {[%clk 0:00:05.5]} 44... a2 {[%clk
0:00:05.8]} 45. Nxh7 {[%clk 0:00:06.4]} 45... a1=Q {[%clk 0:00:05.3]} 46. Nf8
{[%clk 0:00:05.6]} 46... Kxf8 {[%clk 0:00:04.7]} 47. Qh6+ {[%clk 0:00:06.5]}
47... Kf7 {[%clk 0:00:04.6]} 48. Qf4 {[%clk 0:00:07.4]} 48... Qf6 {[%clk
0:00:04.6]} 49. h4 {[%clk 0:00:07.9]} 49... Bh5 {[%clk 0:00:04.2]} 50. f3 {[%clk
0:00:07.5]} 50... Bg6 {[%clk 0:00:04.6]} 51. Kh3 {[%clk 0:00:08.4]} 51... Nd5
{[%clk 0:00:04.4]} 52. Qc4 {[%clk 0:00:09.3]} 52... Qe6 {[%clk 0:00:04.5]} 53.
h5 {[%clk 0:00:09.8]} 53... f4+ {[%clk 0:00:05]} 54. g4 {[%clk 0:00:07.9]} 54...
Bxh5 {[%clk 0:00:05.6]} 55. Kh4 {[%clk 0:00:08]} 55... Bg6 {[%clk 0:00:05.7]}
56. Qd4 {[%clk 0:00:08.4]} 56... Qf6+ {[%clk 0:00:05.9]} 57. Qxf6+ {[%clk
0:00:07.5]} 57... Kxf6 {[%clk 0:00:06.8]} 58. g5+ {[%clk 0:00:07.8]} 58... Kf5
{[%clk 0:00:06.8]} 59. Kh3 {[%clk 0:00:08]} 59... Kxg5 {[%clk 0:00:07.6]} 60.
Kg2 {[%clk 0:00:08.3]} 60... Bh5 {[%clk 0:00:08.2]} 61. Kh2 {[%clk 0:00:09.2]}
61... Ne3 {[%clk 0:00:08.6]} 62. Kh3 {[%clk 0:00:09.6]} 62... Bxf3 {[%clk
0:00:08.9]} 63. Kh2 {[%clk 0:00:09.6]} 63... Be4 {[%clk 0:00:09.5]} 64. Kh3
{[%clk 0:00:10.5]} 64... Bf5+ {[%clk 0:00:09.4]} 65. Kh2 {[%clk 0:00:10.5]}
65... Kg4 {[%clk 0:00:10.1]} 66. Kh1 {[%clk 0:00:10.7]} 66... Nd5 {[%clk
0:00:10.7]} 67. Kg1 {[%clk 0:00:11.5]} 67... Kf3 {[%clk 0:00:10.7]} 68. Kf1
{[%clk 0:00:11.3]} 68... Kg3 {[%clk 0:00:11.3]} 69. Kg1 {[%clk 0:00:11.4]} 69...
Bh3 {[%clk 0:00:11.2]} 70. Kh1 {[%clk 0:00:09.3]} 70... f3 {[%clk 0:00:11.6]}
71. Kg1 {[%clk 0:00:09.6]} 71... f2+ {[%clk 0:00:12.2]} 72. Kh1 {[%clk 0:00:10]}
72... f1=Q# {[%clk 0:00:13.1]} 0-1

[Event "Late-Titled-Tuesday-Blitz-October-03-2023"]
[Site "Chess.com"]
[Date "2023.10.03"]
[Round "3"]
[White "GlavkonVVS"]
[Black "Walter_White_Poland"]
[Result "0-1"]
[WhiteElo "2586"]
[BlackElo "2299"]
[TimeControl "180+1"]
[EndTime "14:27:56 PDT"]
[Termination "Walter_White_Poland won by resignation"]

1. c4 {[%clk 0:03:00.9]} 1... e5 {[%clk 0:02:58.5]} 2. Nc3 {[%clk 0:03:01.3]}
2... Nc6 {[%clk 0:02:57.9]} 3. g3 {[%clk 0:03:01.6]} 3... d6 {[%clk 0:02:57.5]}
4. Bg2 {[%clk 0:03:02]} 4... Nf6 {[%clk 0:02:57.3]} 5. e3 {[%clk 0:03:02.3]}
5... g6 {[%clk 0:02:57.1]} 6. Nge2 {[%clk 0:03:02.6]} 6... Bg7 {[%clk
0:02:56.2]} 7. d3 {[%clk 0:03:01.5]} 7... O-O {[%clk 0:02:55.7]} 8. Rb1 {[%clk
0:03:02.1]} 8... a5 {[%clk 0:02:54.7]} 9. a3 {[%clk 0:03:02.2]} 9... Bg4 {[%clk
0:02:48.1]} 10. h3 {[%clk 0:03:01.8]} 10... Bf5 {[%clk 0:02:46.2]} 11. g4 {[%clk
0:03:02]} 11... Be6 {[%clk 0:02:38.3]} 12. b4 {[%clk 0:03:01.6]} 12... axb4
{[%clk 0:02:37.4]} 13. axb4 {[%clk 0:03:01.5]} 13... Ra7 {[%clk 0:02:29.7]} 14.
b5 {[%clk 0:02:59.2]} 14... Ne7 {[%clk 0:02:28]} 15. Ng3 {[%clk 0:02:51.9]}
15... Nd7 {[%clk 0:02:26.3]} 16. Nd5 {[%clk 0:02:36.4]} 16... f5 {[%clk
0:02:01.4]} 17. O-O {[%clk 0:02:25.6]} 17... c6 {[%clk 0:01:37.3]} 18. Nxe7+
{[%clk 0:02:23.9]} 18... Qxe7 {[%clk 0:01:36.8]} 19. bxc6 {[%clk 0:02:24.4]}
19... bxc6 {[%clk 0:01:36.1]} 20. gxf5 {[%clk 0:02:23.4]} 20... gxf5 {[%clk
0:01:27]} 21. Nh5 {[%clk 0:02:15.8]} 21... Qh4 {[%clk 0:01:21.8]} 22. f4 {[%clk
0:02:04.2]} 22... Nf6 {[%clk 0:01:07.3]} 23. Bf3 {[%clk 0:01:23.4]} 23... Qxh3
{[%clk 0:00:53.8]} 24. Rb2 {[%clk 0:01:22.9]} 24... Ng4 {[%clk 0:00:38.6]} 25.
Nxg7 {[%clk 0:01:11.7]} 25... Rxg7 {[%clk 0:00:34.6]} 26. Rg2 {[%clk 0:01:12.2]}
26... Rf6 {[%clk 0:00:20.5]} 27. Bxg4 {[%clk 0:01:05.6]} 27... Rxg4 {[%clk
0:00:20.2]} 28. Rxg4+ {[%clk 0:01:04.7]} 28... fxg4 {[%clk 0:00:20.3]} 29. Qe2
{[%clk 0:00:59.5]} 29... exf4 {[%clk 0:00:19.8]} 30. Rxf4 {[%clk 0:00:57.7]}
30... Rxf4 {[%clk 0:00:18.5]} 31. exf4 {[%clk 0:00:58.1]} 31... g3 {[%clk
0:00:18.8]} 32. Bb2 {[%clk 0:00:44.6]} 32... d5 {[%clk 0:00:17.4]} 33. c5 {[%clk
0:00:38.4]} 33... h5 {[%clk 0:00:14.9]} 34. Bf6 {[%clk 0:00:35.8]} 34... h4
{[%clk 0:00:10.5]} 35. Bxh4 {[%clk 0:00:35.9]} 35... Qh2+ {[%clk 0:00:07.8]} 36.
Qxh2 {[%clk 0:00:35.9]} 36... gxh2+ {[%clk 0:00:08.7]} 37. Kxh2 {[%clk
0:00:36.5]} 37... Bf5 {[%clk 0:00:09.2]} 38. d4 {[%clk 0:00:36.6]} 38... Kf7
{[%clk 0:00:09.5]} 39. Kg3 {[%clk 0:00:37]} 39... Ke6 {[%clk 0:00:08.6]} 40. Bd8
{[%clk 0:00:36.4]} 40... Be4 {[%clk 0:00:09.5]} 41. Kg4 {[%clk 0:00:35.9]} 41...
Bf5+ {[%clk 0:00:10.4]} 42. Kg5 {[%clk 0:00:35.9]} 42... Be4 {[%clk 0:00:11.2]}
43. Ba5 {[%clk 0:00:35.8]} 43... Bf5 {[%clk 0:00:11.4]} 44. Be1 {[%clk
0:00:35.2]} 44... Be4 {[%clk 0:00:11.6]} 45. Bh4 {[%clk 0:00:35.6]} 45... Bf5
{[%clk 0:00:11.8]} 46. Kh6 {[%clk 0:00:36]} 46... Kf7 {[%clk 0:00:10.3]} 47. Be1
{[%clk 0:00:32.8]} 47... Be4 {[%clk 0:00:10.5]} 48. Kg5 {[%clk 0:00:32.8]} 48...
Ke6 {[%clk 0:00:10.8]} 49. Ba5 {[%clk 0:00:31.9]} 49... Bf5 {[%clk 0:00:10.9]}
50. Bc7 {[%clk 0:00:32.5]} 50... Be4 {[%clk 0:00:11]} 51. Be5 {[%clk 0:00:32.4]}
51... Bf5 {[%clk 0:00:11.9]} 52. Kh6 {[%clk 0:00:32.6]} 52... Kf7 {[%clk
0:00:11.6]} 53. Kh5 {[%clk 0:00:32.5]} 53... Be4 {[%clk 0:00:09.8]} 54. Kg5
{[%clk 0:00:33.4]} 54... Ke6 {[%clk 0:00:10.1]} 55. Bh8 {[%clk 0:00:31.7]} 55...
Bf5 {[%clk 0:00:10.1]} 56. Kh6 {[%clk 0:00:31.6]} 56... Kf7 {[%clk 0:00:08.2]}
57. Bg7 {[%clk 0:00:31.9]} 57... Be4 {[%clk 0:00:08.2]} 58. Be5 {[%clk
0:00:29.7]} 58... Bf5 {[%clk 0:00:06.7]} 59. Kg5 {[%clk 0:00:30]} 59... Ke6
{[%clk 0:00:07.1]} 60. Bc7 {[%clk 0:00:29.6]} 60... Be4 {[%clk 0:00:06.9]} 61.
f5+ {[%clk 0:00:30.1]} 61... Bxf5 {[%clk 0:00:07]} 62. Kh6 {[%clk 0:00:30.3]}
62... Be4 {[%clk 0:00:07.9]} 63. Kg7 {[%clk 0:00:30.6]} 63... Kd7 {[%clk
0:00:08.4]} 64. Bg3 {[%clk 0:00:29.9]} 64... Bd3 {[%clk 0:00:09.3]} 65. Kf6
{[%clk 0:00:30.1]} 65... Bc4 {[%clk 0:00:10.2]} 66. Ke5 {[%clk 0:00:30.6]} 66...
Bb5 {[%clk 0:00:11.1]} 67. Bh4 {[%clk 0:00:31.2]} 67... Bc4 {[%clk 0:00:11.7]}
68. Bg5 {[%clk 0:00:32.1]} 68... Bb5 {[%clk 0:00:12.1]} 69. Bf6 {[%clk
0:00:32.8]} 69... Bc4 {[%clk 0:00:13]} 70. Bg7 {[%clk 0:00:33.6]} 70... Bb5
{[%clk 0:00:13.8]} 71. Bf8 {[%clk 0:00:34.3]} 71... Bc4 {[%clk 0:00:14.7]} 72.
Bd6 {[%clk 0:00:35.1]} 72... Bb5 {[%clk 0:00:15.6]} 73. Kf4 {[%clk 0:00:36]}
73... Bc4 {[%clk 0:00:16.5]} 74. Ke3 {[%clk 0:00:36.9]} 74... Bb5 {[%clk
0:00:17]} 75. Kd2 {[%clk 0:00:37.8]} 75... Bc4 {[%clk 0:00:17.4]} 76. Kc3 {[%clk
0:00:38.7]} 76... Bb5 {[%clk 0:00:17.9]} 77. Kb4 {[%clk 0:00:39.6]} 77... Ke6
{[%clk 0:00:18.5]} 78. Ka5 {[%clk 0:00:40.5]} 78... Kf5 {[%clk 0:00:19.1]} 79.
Kb6 {[%clk 0:00:41.3]} 79... Ke4 {[%clk 0:00:20]} 80. Kc7 {[%clk 0:00:42]} 80...
Kxd4 {[%clk 0:00:20.3]} 81. Be7 {[%clk 0:00:42.5]} 81... Kc3 {[%clk 0:00:20.7]}
82. Kd6 {[%clk 0:00:42.9]} 82... d4 {[%clk 0:00:21.6]} 83. Bf6 {[%clk
0:00:43.5]} 83... Kc4 {[%clk 0:00:21.5]} 84. Bg5 {[%clk 0:00:42.7]} 84... d3
{[%clk 0:00:22.4]} 85. Bd2 {[%clk 0:00:42.4]} 85... Kb3 {[%clk 0:00:23.3]} 86.
Ke5 {[%clk 0:00:42.3]} 86... Kc2 {[%clk 0:00:24.2]} 87. Bf4 {[%clk 0:00:42]}
87... d2 {[%clk 0:00:25.1]} 88. Bxd2 {[%clk 0:00:42.4]} 88... Kxd2 {[%clk
0:00:26]} 89. Kd6 {[%clk 0:00:42.8]} 89... Kc3 {[%clk 0:00:26.4]} 90. Kc7 {[%clk
0:00:43.5]} 90... Kc4 {[%clk 0:00:27]} 91. Kb6 {[%clk 0:00:44.1]} 91... Kb4
{[%clk 0:00:24.2]} 0-1

[Event "Late-Titled-Tuesday-Blitz-October-03-2023"]
[Site "Chess.com"]
[Date "2023.10.03"]
[Round "3"]
[White "valemava"]
[Black "Marasmus01"]
[Result "1/2-1/2"]
[WhiteElo "2290"]
[BlackElo "2509"]
[TimeControl "180+1"]
[EndTime "14:28:03 PDT"]
[Termination "Game drawn by repetition"]

1. Nf3 {[%clk 0:03:00.9]} 1... Nf6 {[%clk 0:02:59.8]} 2. c4 {[%clk 0:02:58.2]}
2... g6 {[%clk 0:02:59.9]} 3. b3 {[%clk 0:02:58.4]} 3... Bg7 {[%clk 0:03:00]} 4.
Bb2 {[%clk 0:02:58.8]} 4... O-O {[%clk 0:03:00.3]} 5. g3 {[%clk 0:02:58.8]} 5...
c5 {[%clk 0:03:00.4]} 6. Bg2 {[%clk 0:02:58.5]} 6... Nc6 {[%clk 0:03:00.9]} 7.
O-O {[%clk 0:02:57.4]} 7... b6 {[%clk 0:02:57.5]} 8. a3 {[%clk 0:02:51.5]} 8...
Bb7 {[%clk 0:02:56.7]} 9. Ra2 {[%clk 0:02:51.3]} 9... e6 {[%clk 0:02:55.9]} 10.
d4 {[%clk 0:02:50.3]} 10... cxd4 {[%clk 0:02:53.1]} 11. Nxd4 {[%clk 0:02:51.2]}
11... Na5 {[%clk 0:02:48.7]} 12. Nb5 {[%clk 0:02:43.6]} 12... Bxg2 {[%clk
0:02:46.5]} 13. Kxg2 {[%clk 0:02:44.5]} 13... d5 {[%clk 0:02:34]} 14. cxd5
{[%clk 0:02:40.3]} 14... Qxd5+ {[%clk 0:02:28.8]} 15. Qxd5 {[%clk 0:02:39.3]}
15... Nxd5 {[%clk 0:02:29.4]} 16. Bxg7 {[%clk 0:02:37.9]} 16... Kxg7 {[%clk
0:02:30.3]} 17. b4 {[%clk 0:02:30.9]} 17... Nc4 {[%clk 0:02:21]} 18. Rc1 {[%clk
0:02:25.7]} 18... Rfc8 {[%clk 0:02:18.5]} 19. Kg1 {[%clk 0:02:01.1]} 19... a6
{[%clk 0:02:16.6]} 20. Nd4 {[%clk 0:02:00]} 20... b5 {[%clk 0:02:01.9]} 21. h4
{[%clk 0:01:59]} 21... Ndb6 {[%clk 0:01:54.5]} 22. Kg2 {[%clk 0:01:50.2]} 22...
Na4 {[%clk 0:01:52.3]} 23. Rac2 {[%clk 0:01:46]} 23... Rd8 {[%clk 0:01:49.4]}
24. e3 {[%clk 0:01:45.2]} 24... e5 {[%clk 0:01:46.5]} 25. Nc6 {[%clk 0:01:43.8]}
25... Re8 {[%clk 0:01:46.3]} 26. Na5 {[%clk 0:01:25.1]} 26... Nab6 {[%clk
0:01:40.6]} 27. Nxc4 {[%clk 0:01:18.4]} 27... Nxc4 {[%clk 0:01:39.8]} 28. a4
{[%clk 0:01:17]} 28... Rad8 {[%clk 0:01:38.7]} 29. axb5 {[%clk 0:01:15.9]} 29...
axb5 {[%clk 0:01:39.6]} 30. Nc3 {[%clk 0:01:15.8]} 30... Rb8 {[%clk 0:01:32.7]}
31. Ne4 {[%clk 0:01:14.2]} 31... Red8 {[%clk 0:01:28]} 32. Nc5 {[%clk 0:01:07]}
32... Rb6 {[%clk 0:01:26.4]} 33. Ra1 {[%clk 0:01:01.8]} 33... Rbd6 {[%clk
0:01:17.9]} 34. Ra7 {[%clk 0:01:00.6]} 34... Kf8 {[%clk 0:01:08.6]} 35. Rca2
{[%clk 0:00:56.2]} 35... Rd2 {[%clk 0:01:04.5]} 36. Rxd2 {[%clk 0:00:41.4]}
36... Rxd2 {[%clk 0:01:03.5]} 37. Kf3 {[%clk 0:00:40.2]} 37... f5 {[%clk
0:00:59.5]} 38. e4 {[%clk 0:00:37.8]} 38... Rb2 {[%clk 0:00:53.3]} 39. Nd7+
{[%clk 0:00:27.4]} 39... Ke8 {[%clk 0:00:46.5]} 40. Nf6+ {[%clk 0:00:26.7]}
40... Kd8 {[%clk 0:00:45.2]} 41. Nxh7 {[%clk 0:00:21.7]} 41... Rb3+ {[%clk
0:00:42.8]} 42. Kg2 {[%clk 0:00:21.5]} 42... fxe4 {[%clk 0:00:41.8]} 43. Nf6
{[%clk 0:00:20.2]} 43... e3 {[%clk 0:00:38.8]} 44. fxe3 {[%clk 0:00:18.8]} 44...
Nxe3+ {[%clk 0:00:36.3]} 45. Kg1 {[%clk 0:00:18.9]} 45... Nf5 {[%clk 0:00:33.1]}
46. g4 {[%clk 0:00:17.2]} 46... Nxh4 {[%clk 0:00:33.1]} 47. Rd7+ {[%clk
0:00:16.7]} 47... Kc8 {[%clk 0:00:32.8]} 48. Re7 {[%clk 0:00:16.7]} 48... Rxb4
{[%clk 0:00:32.9]} 49. Nd5 {[%clk 0:00:14.2]} 49... Rd4 {[%clk 0:00:31.6]} 50.
Ne3 {[%clk 0:00:09.4]} 50... g5 {[%clk 0:00:28.7]} 51. Kf2 {[%clk 0:00:09.3]}
51... Rf4+ {[%clk 0:00:28.8]} 52. Ke2 {[%clk 0:00:09.1]} 52... Re4 {[%clk
0:00:28.4]} 53. Kd3 {[%clk 0:00:07.8]} 53... Rd4+ {[%clk 0:00:28.7]} 54. Ke2
{[%clk 0:00:07.5]} 54... e4 {[%clk 0:00:28.6]} 55. Re5 {[%clk 0:00:05]} 55...
Nf3 {[%clk 0:00:24.4]} 56. Rxb5 {[%clk 0:00:04.8]} 56... Rd2+ {[%clk 0:00:23.7]}
57. Kf1 {[%clk 0:00:05]} 57... Rd3 {[%clk 0:00:22.4]} 58. Ng2 {[%clk 0:00:03.3]}
58... e3 {[%clk 0:00:21.8]} 59. Ke2 {[%clk 0:00:03.5]} 59... Nd4+ {[%clk
0:00:19.7]} 60. Kxd3 {[%clk 0:00:03.3]} 60... Nxb5 {[%clk 0:00:20]} 61. Kxe3
{[%clk 0:00:03.9]} 61... Kd7 {[%clk 0:00:20]} 62. Ke4 {[%clk 0:00:04.3]} 62...
Ke6 {[%clk 0:00:20.4]} 63. Nf4+ {[%clk 0:00:04.2]} 63... gxf4 {[%clk 0:00:20.3]}
64. Kxf4 {[%clk 0:00:04.9]} 64... Nd6 {[%clk 0:00:21.1]} 65. g5 {[%clk
0:00:05.5]} 65... Kf7 {[%clk 0:00:20.9]} 66. g6+ {[%clk 0:00:06.4]} 66... Kg7
{[%clk 0:00:21.1]} 67. Kg5 {[%clk 0:00:05.6]} 67... Ne8 {[%clk 0:00:22]} 68. Kf5
{[%clk 0:00:05.7]} 68... Nf6 {[%clk 0:00:22.1]} 69. Kg5 {[%clk 0:00:06.6]} 69...
Ne4+ {[%clk 0:00:21]} 70. Kf5 {[%clk 0:00:07.5]} 70... Nd6+ {[%clk 0:00:21.4]}
71. Kg5 {[%clk 0:00:08.4]} 71... Ne8 {[%clk 0:00:22.3]} 72. Kf5 {[%clk
0:00:09.3]} 72... Nf6 {[%clk 0:00:23.2]} 73. Kg5 {[%clk 0:00:10.2]} 73... Ne8
{[%clk 0:00:23.6]} 1/2-1/2